bitfinex-derivatives/quotes_BTCF0:USTF0_20241210
["timestamp","ask_amount","ask_price","bid_price","bid_amount"]
[1733837167509,0.0512903,97588.0,97587.0,0.3618]
[1733837167510,0.0090733,97588.0,97587.0,0.3618]
[1733837168679,0.0040733,97588.0,97587.0,0.3608]
[1733837168879,0.0070733,97588.0,97587.0,0.3608]
[1733837169780,0.0582913,97588.0,97587.0,0.00204]
[1733837171288,0.0070733,97588.0,97587.0,0.00204]
[1733837175890,0.0070733,97588.0,97586.0,0.412018]
[1733837177484,0.0070733,97588.0,97586.0,0.3608]
[1733837178998,0.0070733,97588.0,97586.0,0.3624]
[1733837179500,0.0070733,97588.0,97586.0,0.413618]
[1733837179791,0.0070733,97588.0,97586.0,0.3624]
[1733837179998,0.0070733,97588.0,97587.0,0.051218]
[1733837180992,0.0070733,97588.0,97587.0,0.412018]
[1733837181704,0.0582903,97588.0,97586.0,0.0016]
[1733837181890,0.0491,97587.0,97570.0,0.00011995]
[1733837182090,0.051226,97571.0,97570.0,0.00011995]
[1733837183394,0.051226,97571.0,97544.0,0.3608]
[1733837183395,0.051231,97563.0,97544.0,0.3608]
[1733837183597,0.15122061,97560.0,97536.0,0.051244]
[1733837183798,0.15122061,97560.0,97543.0,0.3608]
[1733837184096,0.3608,97561.0,97543.0,0.3608]
[1733837184302,0.3608,97561.0,97556.0,0.051234]
[1733837184500,0.3608,97561.0,97551.0,0.3608]
[1733837184692,0.3608,97570.0,97560.0,0.3608]
[1733837184893,0.3608,97570.0,97565.0,0.051229]
[1733837185099,0.051227,97569.0,97560.0,0.3608]
[1733837185708,0.02056829,97571.0,97563.0,0.05123]
[1733837185894,0.02056829,97571.0,97560.0,0.3608]
[1733837185895,0.051225,97573.0,97566.0,0.051229]
[1733837187505,0.051224,97576.0,97569.0,0.051227]
[1733837187705,0.3608,97578.0,97566.0,0.006]
[1733837188002,0.051226,97573.0,97566.0,0.00768]
[1733837188408,0.3608,97578.0,97570.0,0.3608]
[1733837188896,0.3608,97578.0,97574.0,0.051225]
[1733837189096,0.3608,97578.0,97570.0,0.3608]
[1733837189097,0.051224,97576.0,97570.0,0.3608]
[1733837189299,0.3608,97578.0,97577.0,0.051223]
[1733837189504,0.3608,97578.0,97570.0,0.3608]
[1733837189505,0.01043906,97581.0,97580.0,0.051222]
[1733837189808,0.01043906,97581.0,97570.0,0.3608]
[1733837189809,0.4067,97599.0,97579.0,0.3608]
[1733837190015,0.051215,97593.0,97587.0,0.412018]
[1733837190506,0.504212,97599.0,97587.0,0.412018]
[1733837190808,0.06199421,97596.0,97587.0,0.412018]
[1733837191501,0.0463,97599.0,97587.0,0.412018]
[1733837192205,0.051212,97598.0,97587.0,0.412018]
[1733837192410,0.051212,97598.0,97587.0,0.44882631]
[1733837192712,0.01069278,97600.0,97587.0,0.412018]
[1733837192713,0.0030733,97588.0,97587.0,0.412018]
[1733837192900,0.051209,97605.0,97587.0,1.01699074]
[1733837193102,0.06175738,97605.0,97601.0,0.23326923]
[1733837193311,0.06175738,97605.0,97602.0,0.18205923]
[1733837193501,0.051209,97605.0,97601.0,0.05121]
[1733837193910,8.533e-05,97603.0,97601.0,0.05121]
[1733837194301,8.533e-05,97603.0,97601.0,0.06021]
[1733837194501,8.533e-05,97603.0,97602.0,0.24274564]
[1733837195115,8.533e-05,97603.0,97601.0,0.25174564]
[1733837195410,0.05129533,97603.0,97601.0,0.25174564]
[1733837195721,0.05129533,97603.0,97602.0,0.03679699]
[1733837196600,0.05129533,97603.0,97602.0,0.18234844]
[1733837196801,0.05229533,97603.0,97602.0,0.009]
[1733837197107,0.00108533,97603.0,97602.0,0.013]
[1733837197516,0.00108533,97603.0,97602.0,0.012]
[1733837198199,8.533e-05,97603.0,97602.0,0.007]
[1733837199411,8.533e-05,97603.0,97602.0,0.006]
[1733837199913,8.533e-05,97603.0,97602.0,0.00792]
[1733837200315,8.533e-05,97603.0,97602.0,0.00292]
[1733837201709,8.533e-05,97603.0,97602.0,0.05413]
[1733837201909,8.533e-05,97603.0,97602.0,0.23634591]
[1733837202220,8.533e-05,97603.0,97602.0,0.05413]
[1733837202406,0.01043472,97610.0,97607.0,0.051207]
[1733837202606,0.3816239,97615.0,97612.0,0.051205]
[1733837202607,0.3608,97615.0,97612.0,0.051205]
[1733837202807,0.0452,97624.0,97612.0,0.412005]
[1733837203007,0.0475,97634.0,97626.0,0.051197]
[1733837203008,0.0457,97629.0,97626.0,0.051197]
[1733837203215,0.0457,97629.0,97628.0,0.411996]
[1733837203418,0.04577228,97629.0,97628.0,0.411996]
[1733837203812,0.04577228,97629.0,97628.0,0.3608]
[1733837204718,0.05477228,97629.0,97628.0,0.3618]
[1733837206017,0.05477228,97629.0,97628.0,0.36388]
[1733837206215,0.06077228,97629.0,97628.0,0.36488]
[1733837206415,0.05177228,97629.0,97628.0,0.36388]
[1733837206616,0.05377228,97629.0,97628.0,0.36388]
[1733837207121,0.04977228,97629.0,97628.0,0.36288]
[1733837207312,0.10096828,97629.0,97628.0,0.36288]
[1733837208820,0.051198,97624.0,97623.0,0.00010638]
[1733837209026,0.051198,97624.0,97611.0,0.3608]
[1733837209320,0.051198,97624.0,97588.0,0.36603897]
[1733837209321,0.051209,97604.0,97603.0,0.3608]
[1733837209621,0.3608,97619.0,97593.0,0.24274564]
[1733837209622,0.15109059,97610.0,97593.0,0.18214866]
[1733837209921,0.051211,97601.0,97593.0,0.051214]
[1733837210222,0.051211,97601.0,97593.0,0.05133044]
[1733837210523,0.0458,97603.0,97594.0,0.051214]
[1733837211615,0.001,97601.0,97594.0,0.051214]
[1733837211824,0.001,97601.0,97594.0,0.052494]
[1733837212018,0.051214,97595.0,97594.0,0.00128]
[1733837212723,0.051214,97595.0,97594.0,0.00428]
[1733837213223,0.051213,97598.0,97594.0,0.00428]
[1733837213412,0.051213,97598.0,97594.0,0.01228]
[1733837214016,0.001,97595.0,97594.0,0.01228]
[1733837214321,0.001,97595.0,97594.0,0.00928]
[1733837214524,0.052213,97598.0,97594.0,0.01028]
[1733837214925,0.052213,97598.0,97594.0,0.009]
[1733837215722,0.06257785,97598.0,97594.0,0.009]
[1733837215925,0.051214,97595.0,97594.0,0.009]
[1733837216217,0.052214,97595.0,97594.0,0.008]
[1733837216820,0.051214,97595.0,97594.0,0.008]
[1733837217415,0.001,97595.0,97581.0,0.18214866]
[1733837217625,0.051221,97581.0,97580.0,0.3608]
[1733837217817,0.051221,97581.0,97561.0,0.461331]
[1733837217818,0.051225,97574.0,97573.0,0.18214866]
[1733837218022,0.051225,97574.0,97570.0,0.3608]
[1733837218023,0.051226,97571.0,97570.0,0.3608]
[1733837219123,0.051223,97577.0,97570.0,0.3608]
[1733837219319,0.051224,97575.0,97570.0,0.3608]
[1733837219827,0.3608,97579.0,97570.0,0.3608]
[1733837219828,0.051226,97572.0,97570.0,0.3608]
[1733837220516,0.051226,97572.0,97570.0,0.3638]
[1733837221024,0.3608,97571.0,97570.0,0.004]
[1733837221323,0.3608,97571.0,97570.0,0.003]
[1733837222525,0.412026,97571.0,97570.0,0.00492]
[1733837222934,0.412026,97571.0,97570.0,0.00592]
[1733837225331,0.0496,97580.0,97574.0,0.051225]
[1733837225633,0.0496,97580.0,97575.0,0.051224]
[1733837226017,0.56249434,97590.0,97575.0,0.051224]
[1733837226218,0.57292111,97590.0,97570.0,0.36672]
[1733837226423,0.051222,97579.0,97570.0,0.417947]
[1733837226634,0.10084717,97580.0,97570.0,0.36572]
[1733837226925,0.10084717,97580.0,97564.0,8.437e-05]
[1733837226926,0.051224,97576.0,97575.0,0.00324]
[1733837227330,0.051229,97565.0,97564.0,8.437e-05]
[1733837227517,0.41213195,97565.0,97564.0,8.437e-05]
[1733837227932,0.051236,97553.0,97531.0,0.3608]
[1733837228123,0.051243,97539.0,97531.0,0.3608]
[1733837228331,0.10084717,97541.0,97531.0,0.3608]
[1733837228729,0.051245,97536.0,97531.0,0.3608]
[1733837229334,0.0447,97540.0,97531.0,0.3608]
[1733837229722,0.05497591,97540.0,97531.0,0.3608]
[1733837229924,0.051247,97532.0,97531.0,0.36344]
[1733837230429,0.051247,97532.0,97531.0,0.01064]
[1733837230928,0.051247,97532.0,97531.0,0.01664]
[1733837231129,0.001,97536.0,97531.0,0.01664]
[1733837231432,0.051245,97535.0,97531.0,0.01064]
[1733837231630,0.001,97532.0,97531.0,0.01664]
[1733837232828,0.001,97532.0,97531.0,0.00864]
[1733837233024,0.001,97532.0,97531.0,0.00764]
[1733837233227,0.001,97532.0,97531.0,0.01464]
[1733837233823,0.001,97532.0,97531.0,0.425687]
[1733837234731,0.15208517,97550.0,97537.0,0.051244]
[1733837234925,0.051238,97549.0,97531.0,0.37444]
[1733837235128,0.051238,97549.0,97539.0,0.051243]
[1733837235528,0.05124,97546.0,97540.0,0.051243]
[1733837235924,0.15136974,97550.0,97548.0,0.051238]
[1733837236128,0.0465,97564.0,97545.0,0.3608]
[1733837236427,0.051234,97557.0,97555.0,0.3608]
[1733837236822,0.0465,97564.0,97563.0,0.05123]
[1733837237133,0.00010295,97565.0,97563.0,0.41203]
[1733837237636,0.0463,97585.0,97563.0,0.41203]
[1733837237826,0.3608,97587.0,97573.0,0.3608]
[1733837238033,0.37113911,97587.0,97573.0,0.3608]
[1733837238229,0.01033911,97587.0,97584.0,0.3608]
[1733837238431,0.07140805,97588.0,97584.0,0.3608]
[1733837238628,9.776e-05,97587.0,97584.0,0.3608]
[1733837238823,0.05131576,97587.0,97584.0,0.3608]
[1733837239024,0.051219,97586.0,97584.0,0.3608]
[1733837239921,9.776e-05,97587.0,97584.0,0.3608]
[1733837240320,0.051218,97586.0,97584.0,0.3608]
[1733837241032,0.054218,97586.0,97584.0,0.3608]
[1733837241723,0.056218,97586.0,97584.0,0.3608]
[1733837241932,0.005,97586.0,97584.0,0.36188]
[1733837242542,0.005,97586.0,97584.0,0.413099]
[1733837243644,0.005,97586.0,97584.0,0.36188]
[1733837246737,0.051219,97585.0,97584.0,0.36188]
[1733837248041,0.053219,97585.0,97584.0,0.36188]
[1733837248239,0.005,97585.0,97584.0,0.36188]
[1733837251829,0.005,97585.0,97557.0,0.28869278]
[1733837251830,0.05122,97583.0,97563.0,0.3608]
[1733837252036,0.05123,97565.0,97563.0,0.3608]
[1733837252445,0.05123,97565.0,97553.0,0.3608]
[1733837252446,0.051232,97560.0,97553.0,0.3608]
[1733837253337,0.09143738,97571.0,97553.0,0.7216]
[1733837253537,0.051224,97576.0,97566.0,0.051229]
[1733837253739,0.051224,97576.0,97565.0,0.3608]
[1733837253740,0.3608,97577.0,97565.0,0.3608]
[1733837253942,0.003,97585.0,97584.0,0.051219]
[1733837254148,0.003,97585.0,97584.0,0.412019]
[1733837254538,0.003,97585.0,97584.0,0.44872212]
[1733837254737,9.776e-05,97587.0,97586.0,0.051218]
[1733837254939,9.776e-05,97587.0,97586.0,0.08792112]
[1733837255544,9.776e-05,97587.0,97586.0,0.08794897]
[1733837256145,0.051219,97585.0,97584.0,0.3608]
[1733837256645,0.053219,97585.0,97584.0,0.3608]
[1733837256839,0.051224,97576.0,97575.0,0.3608]
[1733837257041,0.051224,97576.0,97564.0,0.41203]
[1733837257042,0.20458874,97585.0,97584.0,0.00128]
[1733837257245,0.06367459,97585.0,97584.0,0.00128]
[1733837257449,0.01045559,97585.0,97584.0,0.00528]
[1733837257638,0.051219,97585.0,97584.0,0.00528]
[1733837258349,0.052219,97585.0,97584.0,0.00128]
[1733837258854,0.053219,97585.0,97584.0,0.00128]
[1733837259958,0.052219,97585.0,97584.0,0.00128]
[1733837260254,0.053219,97585.0,97584.0,0.00128]
[1733837261960,0.053219,97585.0,97559.0,0.3608]
[1733837261961,0.051232,97560.0,97559.0,0.54251958]
[1733837262143,0.051232,97560.0,97559.0,0.3608]
[1733837262344,0.051232,97560.0,97559.0,0.39776242]
[1733837262657,0.051232,97560.0,97559.0,0.3608]
[1733837262852,0.051232,97560.0,97559.0,0.3634]
[1733837263052,0.051232,97560.0,97538.0,0.3608]
[1733837263053,0.05124,97546.0,97538.0,0.3608]
[1733837263249,0.05124,97546.0,97539.0,0.03707037]
[1733837263454,0.15136974,97550.0,97540.0,0.03707037]
[1733837263455,0.05124,97545.0,97540.0,0.03707037]
[1733837263645,0.05124,97545.0,97538.0,0.3608]
[1733837263646,0.05124,97545.0,97541.0,0.03707037]
[1733837263847,0.05124,97545.0,97538.0,0.3608]
[1733837263848,0.05124,97545.0,97542.0,0.03707037]
[1733837264160,0.05124,97545.0,97538.0,0.3608]
[1733837264357,0.05124,97545.0,97543.0,0.0371037]
[1733837264557,0.001,97546.0,97538.0,0.3698]
[1733837264758,0.001,97546.0,97539.0,0.03708576]
[1733837265074,0.001,97546.0,97538.0,0.3698]
[1733837265075,0.051241,97543.0,97540.0,0.03708576]
[1733837265263,0.051242,97542.0,97540.0,0.03708576]
[1733837265658,0.001,97545.0,97540.0,0.3608]
[1733837266262,0.001,97545.0,97541.0,0.0370769]
[1733837266263,0.05124,97545.0,97541.0,0.0370769]
[1733837266569,0.051241,97544.0,97542.0,0.0370769]
[1733837266764,0.051243,97540.0,97539.0,0.005]
[1733837268265,0.051243,97540.0,97538.0,0.3608]
[1733837268466,0.06189197,97546.0,97538.0,0.3608]
[1733837268676,0.05124,97544.0,97539.0,0.002]
[1733837268868,0.05124,97544.0,97539.0,0.00364]
[1733837269371,0.051242,97541.0,97539.0,0.00364]
[1733837269773,0.051242,97541.0,97539.0,0.00864]
[1733837269774,0.001,97540.0,97539.0,0.00864]
[1733837270271,0.00109009,97540.0,97539.0,0.00864]
[1733837270772,0.00109009,97540.0,97539.0,0.00664]
[1733837271459,0.0104438,97540.0,97539.0,0.00664]
[1733837271667,0.0104438,97540.0,97539.0,0.00864]
[1733837272573,0.0104438,97540.0,97539.0,0.00364]
[1733837272786,0.0114438,97540.0,97539.0,0.00864]
[1733837277170,0.0626868,97540.0,97539.0,0.00864]
[1733837277678,0.0626868,97540.0,97529.0,0.00010379]
[1733837277679,0.051248,97530.0,97529.0,0.00010379]
[1733837278178,0.051248,97530.0,97510.0,0.3608]
[1733837278179,0.051258,97511.0,97510.0,0.3608]
[1733837278379,0.051248,97530.0,97510.0,0.3608]
[1733837278380,0.051257,97513.0,97510.0,0.3608]
[1733837279169,0.15136974,97520.0,97500.0,0.46237801]
[1733837279386,0.05126,97508.0,97500.0,0.46089801]
[1733837279573,0.051261,97506.0,97500.0,0.46089801]
[1733837279774,0.051263,97501.0,97500.0,0.46089801]
[1733837279975,0.051263,97501.0,97500.0,0.10009801]
[1733837280982,0.0463,97502.0,97500.0,0.10009801]
[1733837281281,0.0473,97513.0,97500.0,0.10009801]
[1733837281579,0.051263,97502.0,97501.0,0.3608]
[1733837282171,0.001,97502.0,97501.0,0.3608]
[1733837282382,0.002,97502.0,97501.0,0.3608]
[1733837283271,0.002,97502.0,97501.0,0.3658]
[1733837283476,0.002,97502.0,97501.0,0.3672]
[1733837284275,0.002,97502.0,97501.0,0.501]
[1733837286380,0.3608,97524.0,97502.0,0.051263]
[1733837286578,0.3608,97524.0,97519.0,0.051254]
[1733837286579,0.37120628,97524.0,97519.0,0.051254]
[1733837286778,0.37120628,97524.0,97515.0,0.3608]
[1733837286974,0.051255,97516.0,97515.0,0.3608]
[1733837287381,0.051252,97523.0,97519.0,0.051253]
[1733837287782,0.051252,97523.0,97520.0,0.051253]
[1733837288178,0.051252,97523.0,97515.0,0.3608]
[1733837288179,0.051252,97523.0,97521.0,0.051252]
[1733837288480,0.01040628,97524.0,97515.0,0.3608]
[1733837288481,0.01140628,97524.0,97523.0,0.051252]
[1733837288686,0.001,97524.0,97523.0,0.412052]
[1733837288983,0.051251,97524.0,97523.0,0.3608]
[1733837289683,0.051251,97524.0,97523.0,0.001]
[1733837289880,0.051251,97524.0,97523.0,0.00324]
[1733837290988,0.051251,97524.0,97523.0,0.00424]
[1733837291776,0.06173987,97524.0,97523.0,0.00424]
[1733837292978,0.01048887,97524.0,97523.0,0.00424]
[1733837293181,0.1425498,97528.0,97523.0,0.00424]
[1733837293385,0.05125,97526.0,97523.0,0.00424]
[1733837294080,0.14315467,97526.0,97523.0,0.00424]
[1733837294281,0.05125,97526.0,97523.0,0.00424]
[1733837294580,0.14315467,97526.0,97523.0,0.00424]
[1733837295188,0.14315467,97526.0,97523.0,0.00324]
[1733837296187,0.09190467,97526.0,97523.0,0.00324]
[1733837297582,0.14315467,97526.0,97523.0,0.00324]
[1733837297779,0.09190467,97525.0,97523.0,0.00324]
[1733837298386,0.051251,97524.0,97523.0,0.00324]
[1733837299293,0.051251,97524.0,97523.0,0.04054109]
[1733837299593,0.051251,97524.0,97523.0,0.00324]
[1733837300596,0.12191651,97526.0,97523.0,0.00324]
[1733837302394,0.13227071,97528.0,97525.0,0.3608]
[1733837302691,0.09199633,97537.0,97525.0,0.3608]
[1733837302896,0.051244,97537.0,97536.0,0.3608]
[1733837303985,0.06170242,97537.0,97536.0,0.3608]
[1733837304186,0.06570242,97537.0,97536.0,0.3608]
[1733837304790,0.06770242,97537.0,97536.0,0.36312]
[1733837306098,0.06770242,97537.0,97536.0,0.00232]
[1733837306582,0.06370242,97537.0,97536.0,0.00232]
[1733837306988,0.06370242,97537.0,97514.0,0.18253146]
[1733837306989,0.42309906,97537.0,97514.0,0.18253146]
[1733837307189,0.051258,97511.0,97510.0,0.18253146]
[1733837307491,0.051261,97505.0,97504.0,0.54494984]
[1733837307692,0.051261,97505.0,97504.0,0.18270984]
[1733837307892,0.1323,97510.0,97503.0,0.18270984]
[1733837307893,0.051261,97504.0,97503.0,0.18270984]
[1733837308093,0.1323,97510.0,97502.0,0.18270984]
[1733837308094,0.051262,97503.0,97502.0,0.18270984]
[1733837308393,0.051262,97503.0,97502.0,0.03740185]
[1733837308697,0.09204098,97506.0,97501.0,0.18271303]
[1733837308992,0.05126,97507.0,97500.0,0.10009801]
[1733837308993,0.051263,97501.0,97500.0,0.10009801]
[1733837309686,0.051261,97506.0,97500.0,0.10009801]
[1733837309884,0.09204098,97509.0,97504.0,0.3608]
[1733837310091,0.01049131,97518.0,97512.0,0.051257]
[1733837310295,0.09204098,97521.0,97520.0,0.051253]
[1733837310592,0.09204098,97525.0,97520.0,0.051253]
[1733837310797,0.02082907,97524.0,97522.0,0.18265268]
[1733837311096,0.02082907,97524.0,97523.0,0.051252]
[1733837311296,0.11288408,97524.0,97523.0,0.051252]
[1733837311598,0.01048505,97528.0,97523.0,0.051252]
[1733837311787,0.12272131,97529.0,97523.0,0.051252]
[1733837311987,0.12272131,97529.0,97524.0,0.051251]
[1733837312287,0.12278325,97530.0,97529.0,0.051248]
[1733837312484,0.12278325,97533.0,97528.0,0.54345268]
[1733837312691,0.12278325,97533.0,97532.0,0.051247]
[1733837312891,0.12278325,97533.0,97528.0,0.3608]
[1733837312892,0.1227846,97533.0,97528.0,0.3608]
[1733837313092,0.051248,97530.0,97528.0,0.3608]
[1733837313284,0.1227846,97531.0,97530.0,0.051248]
[1733837313589,0.051245,97536.0,97530.0,0.051248]
[1733837313790,0.20464664,97535.0,97530.0,0.051248]
[1733837314386,0.15340164,97535.0,97528.0,0.36328]
[1733837314592,0.15340164,97535.0,97533.0,0.051246]
[1733837314786,0.15340164,97535.0,97528.0,0.36328]
[1733837314787,0.15351829,97536.0,97529.0,0.051248]
[1733837314987,0.15351829,97536.0,97533.0,0.051246]
[1733837315189,0.001,97535.0,97534.0,0.051246]
[1733837315687,0.05084482,97535.0,97534.0,0.051246]
[1733837315891,0.001,97535.0,97534.0,0.051246]
[1733837316298,0.05084897,97535.0,97534.0,0.051246]
[1733837316701,0.001,97535.0,97534.0,0.051246]
[1733837316889,0.001,97535.0,97534.0,0.053526]
[1733837318298,0.05084506,97535.0,97534.0,0.053526]
[1733837318596,0.001,97535.0,97534.0,0.09076026]
[1733837318796,0.1535477,97538.0,97537.0,0.051244]
[1733837318989,0.1535477,97538.0,97537.0,0.44927826]
[1733837319197,0.04984902,97538.0,97537.0,0.412044]
[1733837319392,0.04984902,97538.0,97537.0,0.3608]
[1733837319596,9.009e-05,97540.0,97537.0,0.39805839]
[1733837319791,9.009e-05,97540.0,97537.0,0.40069839]
[1733837320000,9.009e-05,97540.0,97539.0,0.051243]
[1733837320296,9.009e-05,97540.0,97539.0,0.08850139]
[1733837320498,0.06800649,97545.0,97539.0,0.38850139]
[1733837320702,7.8e-07,97556.0,97545.0,0.05124]
[1733837320893,0.18287477,97567.0,97555.0,0.3608]
[1733837321199,0.17046598,97587.0,97555.0,0.3608]
[1733837321200,0.39746653,97575.0,97566.0,0.412029]
[1733837321401,0.18411263,97577.0,97574.0,0.3608]
[1733837321699,0.00012798,97580.0,97579.0,0.051222]
[1733837322000,0.04996775,97580.0,97579.0,0.412022]
[1733837322195,0.00012798,97580.0,97579.0,0.44902795]
[1733837322395,0.18422716,97580.0,97579.0,0.44902795]
[1733837322599,0.04995727,97580.0,97579.0,0.45154795]
[1733837322899,0.00012798,97580.0,97579.0,0.45154795]
[1733837323301,0.00012798,97580.0,97579.0,0.45146918]
[1733837323602,0.00012798,97580.0,97579.0,0.414542]
[1733837326002,0.00012798,97580.0,97579.0,0.412022]
[1733837327103,0.00012798,97580.0,97579.0,0.3608]
[1733837327104,0.05134998,97580.0,97579.0,0.3608]
[1733837327796,0.00012798,97580.0,97579.0,0.3608]
[1733837328601,0.0453,97599.0,97579.0,0.6608]
[1733837328803,0.0453,97599.0,97598.0,0.772812]
[1733837329097,0.051204,97614.0,97613.0,0.051204]
[1733837329306,0.051191,97639.0,97613.0,0.3608]
[1733837329307,0.0445,97621.0,97613.0,0.3608]
[1733837329493,0.0445,97621.0,97619.0,0.051201]
[1733837329494,0.05130292,97620.0,97619.0,0.051201]
[1733837330001,0.10112392,97620.0,97619.0,0.051201]
[1733837330300,0.05130292,97620.0,97619.0,0.051201]
[1733837331099,0.00010192,97620.0,97619.0,0.051201]
[1733837333106,0.00910192,97620.0,97619.0,0.051201]
[1733837333494,0.00010192,97620.0,97619.0,0.054201]
[1733837336210,0.00010192,97620.0,97619.0,0.053201]
[1733837337806,0.00010192,97620.0,97619.0,0.052201]
[1733837338109,0.00010192,97620.0,97619.0,0.053201]
[1733837339409,0.00010192,97620.0,97619.0,0.051201]
[1733837339611,0.00010192,97620.0,97619.0,0.053201]
[1733837340308,0.05130292,97620.0,97619.0,0.053201]
[1733837340608,0.051204,97614.0,97613.0,0.72308]
[1733837340814,0.051204,97614.0,97613.0,0.7216]
[1733837342809,0.094904,97614.0,97613.0,0.7236]
[1733837343008,0.095904,97614.0,97613.0,0.7236]
[1733837343503,0.095904,97614.0,97613.0,0.7226]
[1733837343704,0.094904,97614.0,97613.0,0.7226]
[1733837344309,0.094904,97614.0,97613.0,0.3618]
[1733837344508,0.0437,97614.0,97596.0,0.3608]
[1733837344818,0.051215,97592.0,97591.0,0.03693516]
[1733837345010,0.051215,97592.0,97586.0,0.3608]
[1733837345011,0.10071988,97596.0,97578.0,0.051223]
[1733837345206,0.10071988,97590.0,97578.0,0.051223]
[1733837345410,0.0428,97589.0,97575.0,0.3608]
[1733837345616,0.051221,97582.0,97575.0,0.3608]
[1733837345815,0.0428,97589.0,97575.0,0.3608]
[1733837345816,0.05122,97583.0,97575.0,0.3608]
[1733837346010,0.051218,97588.0,97578.0,0.051222]
[1733837346510,0.0428,97589.0,97578.0,0.051222]
[1733837346511,0.051218,97587.0,97578.0,0.051222]
[1733837346720,0.001,97582.0,97578.0,0.051222]
[1733837347018,0.001,97582.0,97578.0,0.00224]
[1733837347315,0.05122,97583.0,97578.0,0.00224]
[1733837347917,0.001,97582.0,97578.0,0.00224]
[1733837348118,0.051222,97580.0,97578.0,0.00224]
[1733837348304,0.051222,97580.0,97567.0,0.00012747]
[1733837348305,0.3608,97579.0,97567.0,0.00012747]
[1733837348615,0.3608,97570.0,97550.0,0.18265268]
[1733837348811,0.051238,97550.0,97547.0,0.18265268]
[1733837349016,0.05124,97546.0,97543.0,0.18265268]
[1733837349208,0.1512472,97560.0,97534.0,0.3608]
[1733837349209,0.3608,97552.0,97542.0,0.18175019]
[1733837349405,0.051239,97546.0,97543.0,0.18175019]
[1733837349605,0.00010625,97545.0,97542.0,0.18175019]
[1733837349807,0.05134625,97545.0,97543.0,0.18175019]
[1733837350310,0.05134625,97545.0,97544.0,0.18176381]
[1733837350511,0.05134625,97545.0,97543.0,0.18176381]
[1733837350705,0.05134625,97545.0,97544.0,0.18176381]
[1733837350706,0.00010625,97545.0,97544.0,0.18176381]
[1733837351105,0.00077491,97546.0,97542.0,0.00708]
[1733837351308,0.37124332,97552.0,97545.0,0.30289209]
[1733837351508,0.051239,97548.0,97545.0,0.30289209]
[1733837351811,0.051239,97548.0,97546.0,0.30289209]
[1733837352019,0.051239,97548.0,97545.0,0.30289209]
[1733837352316,0.001,97545.0,97542.0,0.00708]
[1733837352508,0.001,97545.0,97544.0,0.36343917]
[1733837352819,0.001,97545.0,97544.0,0.31418191]
[1733837353014,0.20840723,97552.0,97545.0,0.00236]
[1733837353222,0.051238,97549.0,97546.0,0.67739536]
[1733837353408,0.051239,97548.0,97547.0,0.67739536]
[1733837353713,0.051239,97548.0,97547.0,0.31418191]
[1733837354108,0.05137223,97548.0,97547.0,0.31418191]
[1733837355016,0.05137223,97548.0,97547.0,0.005]
[1733837355610,1.05657223,97548.0,97545.0,0.24219161]
[1733837355816,1.05657223,97548.0,97540.0,0.18178121]
[1733837356007,0.412042,97541.0,97539.0,0.12798121]
[1733837356208,0.412042,97541.0,97522.0,0.36321356]
[1733837356209,0.3608,97541.0,97522.0,0.36321356]
[1733837356409,0.3608,97529.0,97514.0,0.36321356]
[1733837356618,0.3608,97529.0,97505.0,0.00144]
[1733837356619,0.1512472,97522.0,97505.0,0.00144]
[1733837356919,0.1512472,97522.0,97506.0,0.28044198]
[1733837357109,0.1512472,97522.0,97507.0,0.05854339]
[1733837357313,0.051255,97518.0,97505.0,0.051261]
[1733837357512,0.1512472,97522.0,97513.0,0.3608]
[1733837357713,0.001,97522.0,97513.0,0.3608]
[1733837357915,0.052252,97522.0,97513.0,0.3608]
[1733837358119,0.001,97522.0,97513.0,0.3608]
[1733837358418,0.001,97522.0,97521.0,0.412053]
[1733837358615,0.001,97522.0,97521.0,0.3608]
[1733837359119,0.002,97522.0,97521.0,0.3608]
[1733837360108,0.001,97522.0,97521.0,0.3608]
[1733837360315,0.001,97522.0,97521.0,0.4039]
[1733837360622,0.37097589,97529.0,97521.0,0.4039]
[1733837361523,0.37097589,97529.0,97521.0,0.4069]
[1733837361913,0.37097589,97529.0,97521.0,0.40946]
[1733837362217,0.051249,97528.0,97521.0,0.40946]
[1733837362423,0.1512472,97531.0,97521.0,0.40946]
[1733837362628,0.001,97529.0,97521.0,0.41046]
[1733837363118,0.01063927,97538.0,97524.0,0.051251]
[1733837363317,0.1512472,97531.0,97529.0,0.3608]
[1733837363518,0.051248,97529.0,97521.0,0.41046]
[1733837363927,0.051248,97529.0,97521.0,0.40946]
[1733837364220,0.051248,97529.0,97524.0,0.002]
[1733837364428,0.1522472,97531.0,97524.0,0.002]
[1733837364429,0.05125,97526.0,97524.0,0.002]
[1733837364926,0.05125,97526.0,97524.0,0.0038]
[1733837365225,0.05125,97526.0,97524.0,0.0018]
[1733837365721,0.01061119,97530.0,97524.0,0.0018]
[1733837366024,0.001,97531.0,97524.0,0.0018]
[1733837366025,0.001,97531.0,97530.0,0.051248]
[1733837366428,0.02091504,97537.0,97534.0,0.051245]
[1733837366718,0.02091504,97537.0,97529.0,0.053248]
[1733837366921,0.02091504,97537.0,97530.0,0.051248]
[1733837367128,0.02091504,97537.0,97530.0,0.054248]
[1733837367321,0.051245,97535.0,97530.0,0.003]
[1733837367516,0.051246,97534.0,97530.0,0.003]
[1733837367822,0.02091504,97537.0,97530.0,0.00128]
[1733837368025,0.051247,97531.0,97530.0,0.00128]
[1733837368224,0.051247,97531.0,97530.0,0.00228]
[1733837368425,0.051247,97531.0,97530.0,0.00528]
[1733837368919,0.051245,97535.0,97530.0,0.00528]
[1733837369517,0.051245,97535.0,97531.0,0.0452]
[1733837369917,0.02091504,97537.0,97531.0,0.0452]
[1733837369918,0.051247,97533.0,97531.0,0.0452]
[1733837370315,0.02091504,97537.0,97531.0,0.0452]
[1733837370316,0.02091504,97537.0,97534.0,0.051245]
[1733837371216,0.051245,97535.0,97534.0,0.0018]